fUSD/lending_fUSD_20241101
["ID","MTS","AMOUNT","RATE_DAILY","PERIOD"]
[341149776,1730475039977,-500.0,0.00044201,3]
[341149777,1730475039986,-871.23,0.00044201,3]
[341149778,1730475039996,-500.0,0.00044201,3]
[341149779,1730475040006,-260.18043149,0.00044201,3]
[341149780,1730475040015,-500.0,0.00044201,3]
[341149781,1730475040025,-500.0,0.00044201,3]
[341149782,1730475040034,-500.0,0.00044201,3]
[341149783,1730475040044,-500.0,0.00044201,3]
[341149784,1730475040053,-665.98,0.00044201,3]
[341149785,1730475040062,-500.0,0.00044201,3]
[341149786,1730475040071,-500.0,0.00044201,3]
[341149787,1730475040081,-500.0,0.00044201,3]
[341149788,1730475040090,-500.0,0.00044201,3]
[341149789,1730475040099,-500.0,0.00044201,3]
[341149790,1730475040109,-653.19,0.00044201,3]
[341149791,1730475040120,-500.0,0.00044201,3]
[341149792,1730475040131,-500.0,0.00044201,3]
[341149793,1730475040140,-500.0,0.00044201,3]
[341149794,1730475040149,-500.0,0.00044201,3]
[341149795,1730475040159,-500.0,0.00044201,3]
[341149796,1730475040169,-607.34,0.00044201,3]
[341149797,1730475040179,-500.0,0.00044201,3]
[341149798,1730475040188,-500.0,0.00044201,3]
[341149799,1730475040200,-500.0,0.00044201,3]
[341149800,1730475040210,-247.36083149,0.00044201,3]
[341149801,1730475040219,-500.0,0.00044201,3]
[341149802,1730475040229,-431.56088489,0.00044201,3]
[341149803,1730475040238,-500.0,0.00044201,3]
[341149804,1730475040248,-500.0,0.00044201,3]
[341149805,1730475040257,-500.0,0.00044201,3]
[341149806,1730475040266,-543.75,0.00044201,3]
[341149807,1730475040275,-500.0,0.00044201,3]
[341149808,1730475040284,-818.58,0.00044201,3]
[341149809,1730475040293,-2282.48,0.00044201,3]
[341149810,1730475040302,-347.79819892,0.00044201,3]
[341149811,1730475040311,-500.0,0.00044201,3]
[341149812,1730475040322,-500.0,0.00044201,3]
[341149813,1730475040331,-500.0,0.00044201,3]
[341149814,1730475040340,-500.0,0.00044201,3]
[341149815,1730475040350,-500.0,0.00044201,3]
[341149816,1730475040359,-500.0,0.00044201,3]
[341149817,1730475040369,-711.43,0.00044201,3]
[341149818,1730475040378,-4000.0,0.00044234,5]
[341149819,1730475040387,-3991.42135711,0.00044319,15]
[341149820,1730475040396,-2110.0,0.00044341,30]
[341149821,1730475040406,-500.0,0.00044379,3]
[341149822,1730475040415,-500.0,0.00044379,3]
[341149823,1730475040424,-500.0,0.00044379,3]
[341149824,1730475040434,-500.0,0.00044379,3]
[341149825,1730475040443,-424.464,0.0004438,14]
[341149826,1730475040452,-6836.42766852,0.00044392,4]
[341149827,1730475040462,-6836.42766852,0.00044424,4]
[341149828,1730475040471,-6836.42766852,0.00044428,4]
[341149829,1730475040481,-500.0,0.00044475,3]
[341149830,1730475040490,-500.0,0.00044475,3]
[341149831,1730475040499,-500.0,0.00044475,3]
[341149832,1730475040508,-500.0,0.00044475,3]
[341149833,1730475040518,-500.0,0.00044475,3]
[341149834,1730475040526,-693.97,0.00044475,3]
[341149835,1730475040535,-643.55,0.00044475,3]
[341149836,1730475040571,-500.0,0.00044475,3]
[341149837,1730475040580,-500.0,0.00044475,3]
[341149838,1730475040589,-500.0,0.00044475,3]
[341149839,1730475040598,-500.0,0.00044475,3]
[341149840,1730475040607,-500.0,0.00044475,3]
[341149841,1730475040615,-871.23,0.00044475,3]
[341149842,1730475040625,-437.18407475,0.00044475,3]
[341149843,1730475040635,-500.0,0.00044475,3]
[341149844,1730475040645,-500.0,0.00044475,3]
[341149845,1730475040654,-412.11504723,0.00044475,3]
[341149846,1730475040662,-500.0,0.00044475,3]
[341149847,1730475040672,-665.98,0.00044475,3]
[341149848,1730475040681,-500.0,0.00044475,3]
[341149849,1730475040691,-500.0,0.00044475,3]
[341149850,1730475040700,-500.0,0.00044475,3]
[341149851,1730475040709,-500.0,0.00044475,3]
[341149852,1730475040718,-500.0,0.00044475,3]
[341149853,1730475040727,-653.19,0.00044475,3]
[341149854,1730475040735,-500.0,0.00044475,3]
[341149855,1730475040744,-500.0,0.00044475,3]
[341149856,1730475040753,-500.0,0.00044475,3]
[341149857,1730475040762,-500.0,0.00044475,3]
[341149858,1730475040770,-500.0,0.00044475,3]
[341149859,1730475040780,-500.0,0.00044475,3]
[341149860,1730475040789,-607.34,0.00044475,3]
[341149861,1730475040798,-500.0,0.00044475,3]
[341149862,1730475040807,-500.0,0.00044475,3]
[341149863,1730475040816,-500.0,0.00044475,3]
[341149864,1730475040825,-500.0,0.00044475,3]
[341149865,1730475040835,-500.0,0.00044475,3]
[341149866,1730475040844,-500.0,0.00044475,3]
[341149867,1730475040853,-543.75,0.00044475,3]
[341149868,1730475040861,-500.0,0.00044475,3]
[341149869,1730475040870,-818.58,0.00044475,3]
[341149870,1730475040881,-2282.48,0.00044475,3]
[341149871,1730475040890,-500.0,0.00044475,3]
[341149872,1730475040899,-500.0,0.00044475,3]
[341149873,1730475040908,-500.0,0.00044475,3]
[341149874,1730475040917,-500.0,0.00044475,3]
[341149875,1730475040928,-500.0,0.00044475,3]
[341149876,1730475040938,-500.0,0.00044475,3]
[341149877,1730475040948,-711.43,0.00044475,3]
[341149878,1730475040958,-150.0,0.00044478,2]
[341149879,1730475040969,-150.0,0.00044479,2]
[341149880,1730475040979,-150.0,0.00044482,2]
[341149881,1730475040990,-150.0,0.00044483,2]
[341149882,1730475041000,-150.0,0.00044484,2]
[341149883,1730475041010,-150.0,0.00044485,2]
[341149884,1730475041021,-150.0,0.00044487,2]
[341149885,1730475041031,-150.0,0.0004449,2]
[341149886,1730475041042,-150.0,0.00044493,2]
[341149887,1730475041053,-150.0,0.00044495,2]
[341149888,1730475041062,-2978.15065456,0.00044496,4]
[341149889,1730475041072,-150.0,0.00044498,2]
[341149890,1730475041085,-6836.42766852,0.00044498,4]
[341149891,1730475041094,-150.0,0.00044502,2]
[341149892,1730475041106,-150.0,0.00044502,2]
[341149893,1730475041121,-150.0,0.00044504,2]
[341149894,1730475041133,-150.0,0.00044508,2]
[341149895,1730475041142,-150.0,0.0004451,2]
[341149896,1730475041152,-150.0,0.00044511,2]
[341149897,1730475041161,-150.0,0.00044512,2]
[341149898,1730475041170,-2978.15065456,0.00044512,4]
[341149899,1730475041179,-150.0,0.00044513,2]
[341149900,1730475041190,-2978.15065456,0.00044513,4]
[341149901,1730475041202,-536.52465128,0.00044516,2]
[341149902,1730475041211,-150.0,0.00044517,2]
[341149903,1730475041221,-150.0,0.00044517,2]
[341149904,1730475041230,-150.0,0.0004452,2]
[341149905,1730475041239,-150.0,0.00044523,2]
[341149906,1730475041248,-150.0,0.00044528,2]
[341149907,1730475041257,-274.0,0.00044529,7]
[341149908,1730475041266,-150.0,0.00044529,2]
[341149909,1730475041276,-150.0,0.0004453,2]
[341149910,1730475041285,-150.0,0.00044533,2]
[341149911,1730475041294,-150.0,0.00044537,2]
[341149912,1730475041304,-1500.0,0.00044538,7]
[341149913,1730475041313,-150.0,0.00044539,2]
[341149914,1730475041322,-150.0,0.0004454,2]
[341149915,1730475041332,-150.0,0.00044542,2]
[341149916,1730475041341,-150.0,0.00044551,2]
[341149917,1730475041350,-150.0,0.00044551,2]
[341149918,1730475041361,-403.9164,0.00044554,2]
[341149919,1730475041371,-41242.4495,0.00044554,2]
[341149920,1730475041380,-150.0,0.00044555,2]
[341149921,1730475041390,-2978.15065456,0.00044556,4]
[341149922,1730475041399,-21886.38795208,0.00044557,4]
[341149923,1730475041511,-392.84327759,0.00044557,4]
[341149924,1730475041536,-1129.42207152,0.00044557,4]
[341149925,1730475041693,-640.32,0.0003999,10]
[341149926,1730475041703,-2742.78,0.00040024,2]
[341149927,1730475041713,-186.371,0.00040541,2]
[341149928,1730475041722,-186.371,0.00040541,2]
[341149929,1730475041731,-186.371,0.00040541,2]
[341149930,1730475041740,-186.371,0.00040541,2]
[341149931,1730475041749,-186.371,0.00040541,2]
[341149932,1730475041758,-186.371,0.00040541,2]
[341149933,1730475041767,-500.0,0.00043379,3]
[341149934,1730475041776,-523.03,0.00043653,3]
[341149935,1730475041786,-9494.50186112,0.00044557,4]
[341149936,1730475041796,-150.0,0.00044557,2]
[341149937,1730475041805,-150.0,0.00044557,2]
[341149938,1730475041814,-2000.0,0.00044557,7]
[341149939,1730475041824,-200.0,0.00044557,7]
[341149940,1730475041833,-150.0,0.00044563,2]
[341149941,1730475041842,-15227.3354048,0.00044567,4]
[341149942,1730475041852,-150.0,0.0004457,2]
[341149943,1730475041861,-501.25,0.00044572,2]
[341149944,1730475041872,-500.0,0.00044572,2]
[341149945,1730475041881,-500.0,0.00044572,2]
[341149946,1730475041891,-500.0,0.00044572,2]
[341149947,1730475041902,-500.0,0.00044572,2]
[341149948,1730475041912,-500.0,0.00044572,2]
[341149949,1730475041922,-976.94,0.00044572,2]
[341149950,1730475041933,-6836.42766852,0.00044572,4]
[341149951,1730475041944,-143.05498943,0.00044573,2]
[341149952,1730475041957,-6.94501057,0.00044573,2]
[341149953,1730475041967,-346.4502496,0.00044576,4]
[341149954,1730475042037,-186.371,0.00040541,2]
[341149955,1730475042046,-1.77261048,0.00044576,4]
[341149956,1730475042132,-200.0,0.00040024,2]
[341149957,1730475042142,-186.371,0.00040541,2]
[341149958,1730475042151,-500.0,0.00043379,3]
[341149959,1730475042160,-500.0,0.00043379,3]
[341149960,1730475042170,-1154.69380319,0.00044576,4]
[341149961,1730475042179,-150.0,0.0004458,2]
[341149962,1730475042189,-150.0,0.00044583,2]
[341149963,1730475042200,-150.0,0.00044587,2]
[341149964,1730475042210,-150.0,0.0004459,2]
[341149965,1730475042219,-150.0,0.00044593,2]
[341149966,1730475042229,-300.0,0.00044594,2]
[341149967,1730475042238,-2000.0,0.00044597,2]
[341149968,1730475042247,-150.0,0.00044597,2]
[341149969,1730475042257,-2978.15065456,0.00044598,4]
[341149970,1730475042266,-150.0,0.00044599,2]
[341149971,1730475042275,-150.0,0.00044601,2]
[341149972,1730475042285,-150.0,0.00044602,2]
[341149973,1730475042294,-150.0,0.00044604,2]
[341149974,1730475042304,-150.0,0.00044605,2]
[341149975,1730475042312,-150.0,0.00044605,2]
[341149976,1730475042322,-150.0,0.00044606,2]
[341149977,1730475042332,-150.0,0.00044609,2]
[341149978,1730475042341,-150.0,0.0004461,2]
[341149979,1730475042351,-150.0,0.00044614,2]
[341149980,1730475042360,-150.0,0.00044616,2]
[341149981,1730475042370,-150.0,0.00044616,2]
[341149982,1730475042381,-150.0,0.00044616,2]
[341149983,1730475042390,-164.21315472,0.00044617,7]
[341149984,1730475042400,-150.0,0.00044617,2]
[341149985,1730475042410,-150.0,0.00044618,2]
[341149986,1730475042419,-150.0,0.00044618,2]
[341149987,1730475042430,-150.0,0.00044622,2]
[341149988,1730475042439,-150.0,0.00044624,2]
[341149989,1730475042450,-150.0,0.00044631,2]
[341149990,1730475042459,-150.0,0.00044635,2]
[341149991,1730475042469,-150.0,0.00044644,2]
[341149992,1730475042478,-150.0,0.00044645,2]
[341149993,1730475042487,-150.0,0.00044646,2]
[341149994,1730475042497,-150.0,0.00044649,2]
[341149995,1730475042507,-150.0,0.00044652,2]
[341149996,1730475042516,-500.0,0.00044653,3]
[341149997,1730475042526,-151.80568782,0.00044655,2]
[341149998,1730475042535,-150.0,0.00044655,2]
[341149999,1730475042545,-150.0,0.00044657,2]
[341150000,1730475042554,-254.337,0.00044658,3]
[341150002,1730475042564,-333.42869971,0.00044658,3]
[341150009,1730475042807,-496.64499881,0.00043379,3]
[341150010,1730475042923,-1.0357506,0.00043379,3]
[341150011,1730475043026,-2.31925059,0.00043379,3]
[341150012,1730475043037,-544.88614598,0.00043653,3]
[341150013,1730475043047,-500.0,0.00043653,3]
[341150014,1730475043057,-150.0,0.00044534,2]
[341150015,1730475043067,-150.0,0.00044593,2]
[341150016,1730475043077,-150.0,0.00044597,2]
[341150017,1730475043087,-150.0,0.00044603,2]
[341150018,1730475043096,-150.0,0.0004461,2]
[341150019,1730475043105,-150.0,0.00044618,2]
[341150020,1730475043119,-150.0,0.00044625,2]
[341150021,1730475043131,-150.0,0.00044637,2]
[341150022,1730475043142,-180.57130029,0.00044658,3]
[341150023,1730475043152,-150.0,0.00044658,3]
[341150024,1730475043162,-500.0,0.00044658,3]
[341150025,1730475043171,-172.53905098,0.00044659,16]
[341150026,1730475043181,-2662.54424338,0.0004466,2]
[341150027,1730475043194,-1654.67542206,0.0004466,2]
[341150028,1730475043205,-509.6,0.0004466,2]
[341150029,1730475043217,-719.25,0.0004466,2]
[341150041,1730475045964,-1088.0,0.00042004,2]
[341150042,1730475045975,-328.6,0.00043379,3]
[341150043,1730475045988,-171.4,0.00043379,3]
[341150044,1730475045999,-220.0,0.00044375,2]
[341150045,1730475046010,-7767.57343456,0.0004466,2]
[341150046,1730475046020,-6711.9823,0.0004466,2]
[341150047,1730475046035,-100000.0,0.0004466,2]
[341150048,1730475046044,-150.0,0.00044661,2]
[341150049,1730475046054,-150.0,0.00044664,2]
[341150050,1730475046064,-150.0,0.00044671,2]
[341150051,1730475046074,-1072.348,0.00044673,2]
[341150052,1730475046083,-150.0,0.00044673,2]
[341150053,1730475046093,-150.0,0.00044673,2]
[341150054,1730475046104,-150.0,0.00044676,2]
[341150055,1730475046115,-150.0,0.00044678,2]
[341150056,1730475046130,-150.0,0.0004468,2]
[341150057,1730475046141,-150.0,0.00044687,2]
[341150058,1730475046151,-150.0,0.00044688,2]
[341150059,1730475046163,-150.0,0.00044688,2]
[341150060,1730475046173,-150.0,0.00044692,2]
[341150061,1730475046184,-504.289594,0.000447,60]
[341150062,1730475046195,-500.0,0.000447,45]
[341150063,1730475046205,-150.0,0.00044702,2]
[341150064,1730475046216,-150.0,0.00044703,2]
[341150065,1730475046227,-150.0,0.00044704,2]
[341150066,1730475046237,-150.0,0.00044705,2]
[341150067,1730475046247,-300.0,0.00044708,2]
[341150068,1730475046257,-150.0,0.00044714,2]
[341150069,1730475046267,-150.0,0.00044714,2]
[341150070,1730475046277,-300.0,0.00044714,2]
[341150071,1730475046287,-150.0,0.00044716,2]
[341150072,1730475046297,-150.0,0.0004472,2]
[341150073,1730475046307,-150.0,0.00044721,2]
[341150074,1730475046317,-150.0,0.00044724,2]
[341150075,1730475046326,-150.0,0.00044725,2]
[341150076,1730475046336,-150.0,0.00044729,2]
[341150077,1730475046346,-150.0,0.00044733,2]
[341150078,1730475046356,-150.0,0.00044733,2]
[341150079,1730475046366,-150.0,0.00044739,2]
[341150080,1730475046376,-150.0,0.00044743,2]
[341150081,1730475046388,-150.0,0.00044744,2]
[341150082,1730475046398,-150.0,0.00044748,2]
[341150083,1730475046407,-1464.09554108,0.00044748,2]
[341150084,1730475046417,-500.0,0.00044749,3]
[341150085,1730475046426,-500.0,0.00044749,3]
[341150086,1730475046436,-500.0,0.00044749,3]
[341150087,1730475046446,-500.0,0.00044749,3]
[341150088,1730475046456,-500.0,0.00044749,3]
[341150089,1730475046466,-693.97,0.00044749,3]
[341150090,1730475046476,-643.55,0.00044749,3]
[341150091,1730475046486,-500.0,0.00044749,3]
[341150092,1730475046496,-500.0,0.00044749,3]
[341150093,1730475046506,-500.0,0.00044749,3]
[341150094,1730475046517,-500.0,0.00044749,3]
[341150095,1730475046528,-500.0,0.00044749,3]
[341150096,1730475046538,-871.23,0.00044749,3]
[341150097,1730475046548,-500.0,0.00044749,3]
[341150098,1730475046558,-500.0,0.00044749,3]
[341150099,1730475046569,-665.98,0.00044749,3]
[341150100,1730475046579,-500.0,0.00044749,3]
[341150101,1730475046590,-500.0,0.00044749,3]
[341150102,1730475046601,-397.29300718,0.00044749,3]
[341150103,1730475046610,-500.0,0.00044749,3]
[341150104,1730475046620,-500.0,0.00044749,3]
[341150105,1730475046631,-653.19,0.00044749,3]
[341150106,1730475046641,-500.0,0.00044749,3]
[341150107,1730475046651,-500.0,0.00044749,3]
[341150108,1730475046661,-500.0,0.00044749,3]
[341150109,1730475046671,-500.0,0.00044749,3]
[341150110,1730475046682,-500.0,0.00044749,3]
[341150111,1730475046691,-500.0,0.00044749,3]
[341150112,1730475046702,-607.34,0.00044749,3]
[341150113,1730475046715,-500.0,0.00044749,3]
[341150114,1730475046726,-500.0,0.00044749,3]
[341150115,1730475046737,-500.0,0.00044749,3]
[341150116,1730475046747,-500.0,0.00044749,3]
[341150117,1730475046757,-500.0,0.00044749,3]
[341150118,1730475046767,-500.0,0.00044749,3]
[341150119,1730475046777,-543.75,0.00044749,3]
[341150120,1730475046787,-500.0,0.00044749,3]
[341150121,1730475046903,-818.58,0.00044749,3]
[341150122,1730475046936,-2282.48,0.00044749,3]
[341150123,1730475046950,-500.0,0.00044749,3]
[341150124,1730475046960,-500.0,0.00044749,3]
[341150125,1730475046970,-500.0,0.00044749,3]
[341150126,1730475046979,-500.0,0.00044749,3]
[341150127,1730475046989,-500.0,0.00044749,3]
[341150128,1730475046999,-500.0,0.00044749,3]
[341150129,1730475047009,-711.43,0.00044749,3]
[341150130,1730475047019,-307.32591049,0.00044759,10]
[341150131,1730475047029,-20260.5760566,0.00044759,2]
[341150132,1730475047039,-500.0,0.00044759,3]
[341150133,1730475047048,-500.0,0.00044759,3]
[341150134,1730475047058,-1246.91,0.00044759,120]
[341150135,1730475047067,-35686.1192115,0.0004476,30]
[341150136,1730475137769,500.0,0.0003145,30]
[341150137,1730475140353,671.0145,0.00030535,2]
[341150138,1730475142258,210.69375,0.00030535,2]
[341150139,1730475181416,300.0,0.00019725,2]
[341150140,1730475270923,156.7,0.00015342,2]
[341150142,1730475301497,300.0,0.00019725,2]
[341150143,1730475541939,300.0,0.00019725,2]
[341150144,1730475710742,250.0,0.00017,2]
[341150145,1730475712022,300.0,0.00019,2]
[341150146,1730475839487,157.08,0.00015342,2]
[341150147,1730475939441,-350.0,0.00021,2]
[341150148,1730476025128,-400.0,0.00023,2]
[341150149,1730476025149,-5822.86121233,0.0002445,2]
[341150150,1730476028513,-10927.0388234,0.0002445,2]
[341150151,1730476028534,-450.0,0.00025,2]
[341150152,1730476028555,-473.55,0.00025,2]
[341150153,1730476028576,-500.0,0.00027,2]
[341150154,1730476028596,-999.99,0.00027,2]
[341150155,1730476028617,-3722.39826046,0.00027,2]
[341150156,1730476028638,-151.0,0.0003,120]
[341150157,1730476028660,-151.0,0.0003,120]
[341150158,1730476028682,-155.944,0.00030029,2]
[341150159,1730476028703,-170.87825,0.00030202,2]
[341150160,1730476028726,-539.8266435,0.0003145,30]
[341150161,1730476028747,-150.0,0.00034548,10]
[341150162,1730476028768,-500.0,0.00034625,2]
[341150163,1730476028789,-1000.0,0.00035995,2]
[341150164,1730476028814,-835.45,0.00036155,2]
[341150165,1730476028835,-177.7,0.00036699,2]
[341150166,1730476028854,-1613.54932272,0.00037531,2]
[341150167,1730476028875,-5321.6270667,0.00037855,2]
[341150168,1730476036102,-616.08839669,0.000249,2]
[341150169,1730476036141,-1964.07321859,0.00037855,2]
[341150171,1730476165104,-2227.65202562,0.00037742,2]
[341150172,1730476165126,-3381.66583462,0.00037842,15]
[341150173,1730476165148,-16614.29971471,0.00037855,2]
[341150174,1730476165170,-858.94,0.00037912,2]
[341150175,1730476165191,-177.77,0.0003792,2]
[341150176,1730476165211,-132780.5313359,0.00037939,2]
[341150177,1730476165230,-157.04,0.00037942,2]
[341150178,1730476165250,-157.04,0.00037942,2]
[341150179,1730476165269,-157.04,0.00037942,2]
[341150180,1730476165289,-1812.09,0.00037948,120]
[341150181,1730476165317,-174.0,0.00037949,2]
[341150182,1730476165338,-500.0,0.00037949,2]
[341150183,1730476165357,-158.58,0.00037949,2]
[341150184,1730476165379,-32034.24945294,0.00037949,10]
[341150185,1730476204153,270.66487517,0.00017605,2]
[341150186,1730476206579,178.643,0.0003,2]
[341150187,1730476206654,268.38,0.00036909,2]
[341150188,1730476207799,217.61475,0.0002936,2]
[341150197,1730476231978,-268.38,0.00037502,2]
[341150198,1730476231988,-154.61,0.00037673,120]
[341150199,1730476231997,-334.39,0.00037809,2]
[341150200,1730476232007,-7101.78054706,0.00037949,10]
[341150201,1730476232016,-3144.05,0.00037949,2]
[341150202,1730476232026,-200.0,0.00037978,2]
[341150203,1730476232036,-250.0,0.0003798,2]
[341150204,1730476232046,-150.99,0.0003798,2]
[341150205,1730476232055,-930.13,0.0003798,2]
[341150206,1730476232065,-1388.28,0.00038,2]
[341150207,1730476232076,-168.87,0.00038012,2]
[341150208,1730476232086,-1960.63,0.00038039,2]
[341150209,1730476232097,-268.38,0.00038095,2]
[341150210,1730476232107,-1000.0,0.00038108,2]
[341150211,1730476232120,-165.52,0.00038131,120]
[341150212,1730476232130,-3127.73,0.00038149,2]
[341150213,1730476232139,-155.944,0.00038152,2]
[341150214,1730476232149,-150.8,0.00038166,120]
[341150215,1730476232159,-150.0,0.0003819,2]
[341150216,1730476232169,-693.57524524,0.00038264,2]
[341150217,1730476232495,-1395.21,0.00038264,2]
[341150218,1730476232509,-1238.78539278,0.00038264,2]
[341150219,1730476232522,-669.44936198,0.00038264,2]
[341150220,1730476232531,-170.87825,0.00038289,2]
[341150221,1730476232541,-152.66,0.00038291,2]
[341150222,1730476232551,-25780.02,0.00038304,2]
[341150223,1730476232560,-200.0,0.00038333,2]
[341150224,1730476232569,-150.0,0.00038335,7]
[341150225,1730476232579,-162.09,0.00038355,120]
[341150226,1730476232588,-3426.39,0.00038356,2]
[341150227,1730476232597,-458.95,0.00038364,2]
[341150228,1730476232607,-332.93,0.00038365,2]
[341150229,1730476232622,-260.88,0.0003841,2]
[341150230,1730476232632,-835.45,0.00038418,2]
[341150231,1730476232641,-171.48,0.00038489,3]
[341150232,1730476232651,-514.49,0.00038489,3]
[341150233,1730476232660,-734.57,0.00038489,10]
[341150234,1730476232669,-612.15,0.00038489,10]
[341150235,1730476232679,-250.0,0.00038489,2]
[341150236,1730476232688,-7033.9,0.00038497,2]
[341150237,1730476232697,-104646.63,0.00038499,2]
[341150238,1730476232707,-3348.46,0.00038499,120]
[341150239,1730476232716,-671.0145,0.00038551,2]
[341150240,1730476232726,-268.38,0.00038688,2]
[341150241,1730476232735,-2265.44,0.0003895,2]
[341150242,1730476232745,-1071.0,0.00039,2]
[341150243,1730476232754,-500.24,0.00039022,2]
[341150244,1730476232763,-250.0,0.0003906,120]
[341150245,1730476232772,-214.98,0.00039076,120]
[341150246,1730476232782,-6425.62,0.00039273,2]
[341150247,1730476232791,-268.38,0.00039281,2]
[341150248,1730476232801,-1882.79,0.00039376,2]
[341150249,1730476232810,-162.91,0.00039685,2]
[341150250,1730476232820,-342.96,0.00039859,3]
[341150251,1730476232829,-268.38,0.00039874,2]
[341150252,1730476232838,-988.6312,0.00039888,7]
[341150253,1730476232847,-153.0,0.00039972,2]
[341150255,1730476232856,-153.0,0.00039972,2]
[341150257,1730476232870,-153.0,0.00039972,2]
[341150259,1730476232879,-153.0,0.00039972,2]
[341150261,1730476232888,-153.0,0.00039972,2]
[341150263,1730476232897,-153.0,0.00039972,2]
[341150264,1730476232906,-153.0,0.00039972,2]
[341150266,1730476232915,-153.0,0.00039972,2]
[341150268,1730476232924,-153.0,0.00039972,2]
[341150270,1730476232933,-323.088,0.00039974,2]
[341150272,1730476232943,-5386.4967,0.00039974,2]
[341150274,1730476232952,-155.8138387,0.0004,2]
[341150276,1730476232962,-3381.66583457,0.00040019,15]
[341150278,1730476232972,-268.38,0.00040467,2]
[341150280,1730476232983,-153.0,0.00040488,2]
[341150282,1730476232991,-153.0,0.00040488,2]
[341150284,1730476233001,-153.0,0.00040488,2]
[341150286,1730476233011,-153.0,0.00040488,2]
[341150288,1730476233021,-503.2334623,0.00040643,5]
[341150290,1730476233030,-276.26,0.00040676,2]
[341150291,1730476233039,-835.45,0.00040682,2]
[341150292,1730476233048,-3002.0,0.00040961,2]
[341150293,1730476233057,-268.38,0.0004106,2]
[341150294,1730476233066,-261.21630456,0.00041095,3]
[341150295,1730476233075,-500.0,0.00041095,3]
[341150296,1730476233085,-500.0,0.00041095,3]
[341150297,1730476233094,-500.0,0.00041095,3]
[341150298,1730476233103,-500.0,0.00041095,3]
[341150299,1730476233117,-964.0,0.00041095,3]
[341150300,1730476233126,-500.0,0.00041095,3]
[341150301,1730476233136,-500.0,0.00041095,3]
[341150302,1730476233145,-500.0,0.00041095,3]
[341150303,1730476233153,-500.0,0.00041095,3]
[341150304,1730476233161,-500.0,0.00041095,3]
[341150305,1730476233171,-500.0,0.00041095,3]
[341150306,1730476233179,-500.0,0.00041095,3]
[341150307,1730476233189,-500.0,0.00041095,3]
[341150308,1730476233198,-500.0,0.00041095,3]
[341150309,1730476233208,-500.0,0.00041095,3]
[341150310,1730476233217,-500.0,0.00041095,3]
[341150311,1730476233226,-500.0,0.00041095,3]
[341150312,1730476233236,-500.0,0.00041095,3]
[341150313,1730476233245,-500.0,0.00041095,3]
[341150314,1730476233254,-500.0,0.00041095,3]
[341150315,1730476233263,-500.0,0.00041095,3]
[341150316,1730476233273,-1779.09,0.00041095,3]
[341150317,1730476233282,-500.0,0.00041095,3]
[341150318,1730476233291,-500.0,0.00041095,3]
[341150319,1730476233300,-835.64,0.00041095,3]
[341150320,1730476233310,-157.0,0.00041096,2]
[341150321,1730476233319,-152.07,0.00041096,2]